bitfinex/quotes_ETHUSD_20240714
["timestamp","ask_amount","ask_price","bid_price","bid_amount"]
[1720924326844,1.08898687,3181.9,3180.7,2.4802]
[1720924327046,0.90392711,3181.8,3180.7,2.4802]
[1720924327237,1.08898687,3181.7,3180.7,2.4802]
[1720924327666,1.08926502,3181.6,3180.7,2.4802]
[1720924327853,1.08926502,3181.5,3180.7,2.4802]
[1720924328048,1.08926502,3181.4,3180.7,2.4802]
[1720924328244,1.08926502,3181.3,3180.8,0.24802]
[1720924328449,0.90392711,3181.8,3180.8,0.24802]
[1720924328655,1.08924958,3181.7,3180.8,0.24802]
[1720924328842,1.08924958,3181.6,3180.8,0.24802]
[1720924329042,1.08924958,3181.5,3180.8,0.24802]
[1720924329258,1.08924958,3181.4,3180.9,2.753022]
[1720924329470,1.08924958,3181.3,3180.9,2.753022]
[1720924329669,2.3717,3181.8,3180.9,2.753022]
[1720924329972,1.08918921,3181.7,3180.9,2.753022]
[1720924330171,1.08918921,3181.6,3180.9,2.753022]
[1720924330471,1.08918921,3181.5,3181.0,0.2753022]
[1720924330687,1.08918921,3181.4,3181.0,0.2753022]
[1720924330842,2.3717,3182.1,3181.0,0.2753022]
[1720924330843,1.08918921,3181.3,3181.0,0.2753022]
[1720924331042,1.08918921,3181.2,3181.0,0.2753022]
[1720924331349,2.3717,3182.1,3181.0,0.2753022]
[1720924331539,1.08915761,3182.0,3181.1,0.27555022]
[1720924331738,1.08915761,3181.9,3181.1,0.27555022]
[1720924331939,1.08915761,3181.8,3181.1,0.27555022]
[1720924332136,1.08915761,3181.7,3181.1,0.27555022]
[1720924332376,1.08915761,3181.6,3181.1,0.27555022]
[1720924332538,1.08915761,3181.5,3181.1,0.27555022]
[1720924332742,1.08915761,3181.5,3180.9,2.4802]
[1720924332743,1.08915761,3181.4,3180.9,2.4802]
[1720924332944,2.60887,3182.1,3180.9,2.4802]
[1720924333169,1.08916174,3182.0,3180.9,2.4802]
[1720924333363,1.08916174,3181.9,3180.9,2.4802]
[1720924333580,1.0892349,3181.8,3180.9,2.4802]
[1720924333746,1.0892349,3181.7,3180.9,2.4802]
[1720924333953,1.0892349,3181.6,3180.9,2.4802]
[1720924334168,2.60887,3182.1,3180.9,2.4802]
[1720924334169,1.0892349,3182.0,3180.9,2.4802]
[1720924334373,1.45904539,3181.9,3180.9,2.4802]
[1720924334568,1.0892349,3181.8,3180.9,2.4802]
[1720924334771,1.0892349,3181.8,3180.6,2.4802]
[1720924336178,2.60887,3182.1,3180.6,2.4802]
[1720924336360,1.90009535,3182.0,3180.7,0.24802]
[1720924336564,1.08920835,3181.9,3180.7,0.24802]
[1720924336887,1.08920835,3181.8,3180.7,0.24802]
[1720924337182,1.08920835,3181.7,3180.7,0.24802]
[1720924337383,1.08920835,3181.6,3180.7,0.24802]
[1720924337681,1.08920835,3181.5,3180.8,0.272822]
[1720924337877,1.08920835,3181.4,3180.8,0.272822]
[1720924338046,1.08920835,3181.3,3180.8,0.272822]
[1720924338245,1.08920835,3181.2,3180.8,0.272822]
[1720924338467,1.08920835,3181.1,3180.8,0.272822]
[1720924338783,0.55,3182.0,3180.8,0.272822]
[1720924338784,1.08920835,3181.0,3180.8,0.272822]
[1720924338954,1.08920835,3180.9,3180.8,0.272822]
[1720924339159,1.08920835,3180.9,3180.6,2.4802]
[1720924339459,1.08920835,3180.8,3180.6,2.4802]
[1720924339790,0.37075614,3181.9,3180.6,2.4802]
[1720924340084,2.3717,3181.7,3180.6,2.4802]
[1720924340382,1.08923958,3181.6,3180.3,2.3902]
[1720924340581,2.3717,3181.7,3180.3,2.3902]
[1720924340582,1.08923958,3181.5,3180.3,2.3902]
[1720924340769,1.08923958,3181.4,3180.3,2.3902]
[1720924340950,1.08923958,3181.6,3180.4,0.53902]
[1720924341152,1.08923958,3181.5,3180.4,0.53902]
[1720924341351,1.08923958,3181.4,3180.4,0.53902]
[1720924341586,1.08923958,3181.3,3180.4,0.53902]
[1720924341786,1.08923958,3181.6,3180.4,0.53902]
[1720924341985,1.43533354,3181.5,3180.4,0.53902]
[1720924342185,1.08923958,3181.4,3180.4,0.53902]
[1720924342826,1.16796716,3181.3,3179.7,1.852]
[1720924343090,1.16796716,3181.3,3179.3,2.51625]
[1720924343091,3.42308274,3181.2,3179.8,2.3902]
[1720924343259,1.08937856,3181.1,3179.8,2.3902]
[1720924343585,1.71798567,3181.0,3179.8,2.3902]
[1720924343761,1.08937856,3180.9,3179.8,2.3902]
[1720924343961,0.17179857,3180.8,3179.8,2.62922]
[1720924344163,1.08937856,3180.7,3179.8,2.62922]
[1720924345962,1.08954659,3180.6,3179.8,2.62922]
[1720924346271,1.08954659,3180.5,3179.8,2.62922]
[1720924346586,1.08964023,3180.4,3179.4,4.2422]
[1720924346882,1.08964023,3180.3,3179.4,2.3902]
[1720924347084,1.08964023,3180.2,3179.4,2.3902]
[1720924347254,1.08964023,3180.4,3179.5,0.23902]
[1720924348358,2.2551,3180.5,3179.5,0.23902]
[1720924348559,1.08966786,3180.4,3179.5,0.23902]
[1720924348790,1.08966786,3180.3,3179.5,0.23902]
[1720924348957,1.08966786,3180.2,3179.5,0.23902]
[1720924349157,2.2551,3180.5,3179.5,0.23902]
[1720924349359,1.08966746,3180.4,3179.5,0.23902]
[1720924349680,2.48061,3180.5,3179.5,0.23902]
[1720924349681,2.2551,3180.5,3179.5,0.23902]
[1720924349879,1.08965039,3180.4,3179.5,0.23902]
[1720924350085,1.08965039,3180.3,3179.5,0.23902]
[1720924350259,1.08965039,3180.2,3179.5,0.23902]
[1720924350460,1.08965039,3180.4,3179.6,0.262922]
[1720924350693,1.08965039,3180.4,3179.4,2.3902]
[1720924352569,1.08966062,3180.3,3179.4,2.3902]
[1720924352784,2.2551,3180.5,3179.4,2.3902]
[1720924352785,1.08966062,3180.2,3179.4,2.3902]
[1720924352991,2.2551,3180.5,3179.4,2.3902]
[1720924352992,1.08966062,3180.4,3179.4,2.3902]
[1720924353980,1.16827379,3180.4,3179.4,2.3902]
[1720924354204,1.431998,3180.3,3178.8,2.3902]
[1720924354421,1.16828122,3180.2,3178.8,2.3902]
[1720924354621,1.08966062,3180.1,3178.8,2.3902]
[1720924355939,0.0786206,3180.2,3178.8,2.3902]
[1720924355940,1.08980836,3180.0,3178.8,2.3902]
[1720924356337,1.08980836,3179.9,3178.8,2.3902]
[1720924356495,1.08980836,3179.8,3178.9,0.53902]
[1720924356697,1.08980836,3179.7,3178.9,3.53902]
[1720924356905,1.08980836,3180.1,3178.9,3.53902]
[1720924357106,1.08980836,3180.0,3178.9,3.53902]
[1720924357335,1.08980836,3180.1,3178.9,3.53902]
[1720924357532,1.08980836,3180.0,3178.9,3.53902]
[1720924357732,1.08980836,3180.1,3178.9,0.53902]
[1720924357935,1.08980836,3180.2,3178.8,2.3902]
[1720924358100,1.08980836,3180.1,3178.8,2.3902]
[1720924358300,1.08980836,3180.2,3178.8,2.3902]
[1720924358506,1.08980836,3180.1,3178.8,2.3902]
[1720924358826,1.08980836,3180.0,3178.8,2.3902]
[1720924359025,1.08980836,3180.0,3178.9,0.53902]
[1720924359238,1.08980813,3179.9,3178.9,0.53902]
[1720924359532,1.08980813,3179.8,3178.9,0.53902]
[1720924359823,1.08980844,3179.7,3178.9,0.53902]
[1720924360031,1.08980844,3179.6,3178.9,0.53902]
[1720924360227,1.08980813,3179.9,3179.0,0.292922]
[1720924360522,1.08980848,3179.8,3179.0,0.292922]
[1720924360723,1.08980848,3179.7,3179.0,0.292922]
[1720924360928,1.08980848,3179.8,3179.0,0.292922]
[1720924361095,1.08980848,3179.7,3179.0,0.292922]
[1720924361295,1.08980848,3179.6,3179.1,2.3844]
[1720924361502,1.08980813,3179.9,3179.1,2.3844]
[1720924361503,1.08980813,3179.9,3179.2,0.2677322]
[1720924361707,1.08976723,3179.8,3179.1,2.3844]
[1720924361923,1.08976723,3179.7,3179.1,2.3844]
[1720924362222,1.08976723,3179.6,3179.1,2.3844]
[1720924362425,2.2551,3180.5,3179.1,2.3844]
[1720924362735,1.63978188,3180.4,3179.1,2.3844]
[1720924362891,1.47927007,3180.3,3179.1,2.3844]
[1720924363106,1.08978188,3180.2,3179.1,2.3844]
[1720924363339,1.08978188,3180.1,3179.1,2.3844]
[1720924363539,1.08978188,3180.0,3179.1,2.3844]
[1720924363838,0.38948819,3180.3,3179.1,2.3844]
[1720924363839,1.08978188,3179.9,3179.1,2.3844]
[1720924364038,1.08978188,3179.8,3179.2,0.23844]
[1720924364219,1.08978188,3179.7,3179.2,0.23844]
[1720924364409,1.08978188,3179.6,3179.2,0.23844]
[1720924364610,0.38948819,3180.3,3179.2,0.23844]
[1720924364845,1.08977255,3180.2,3179.1,2.3844]
[1720924365029,1.08977255,3180.1,3179.1,2.3844]
[1720924365232,1.08977255,3180.2,3179.1,2.3844]
[1720924365412,1.08977255,3180.1,3179.1,2.3844]
[1720924365751,1.08980951,3180.0,3179.1,2.3844]
[1720924365940,3.54370951,3179.9,3179.1,2.3844]
[1720924366120,1.44418046,3179.8,3179.1,2.3844]
[1720924366324,1.08980951,3179.7,3178.9,0.53902]
[1720924367017,1.08980951,3179.7,3178.8,2.3844]
[1720924367217,1.08983282,3179.6,3178.8,2.3844]
[1720924367544,0.68289584,3179.8,3178.8,2.3844]
[1720924367545,1.08983282,3179.5,3178.8,2.3844]
[1720924367746,1.08983282,3179.4,3178.8,2.3844]
[1720924367955,1.08983282,3179.7,3178.8,2.3844]
[1720924368121,1.08981066,3179.6,3178.9,0.53844]
[1720924368320,1.08981066,3179.5,3178.9,0.53844]
[1720924368628,1.08981066,3179.4,3178.9,0.53844]
[1720924368823,0.32852489,3179.8,3179.0,2.3844]
[1720924369227,0.32852489,3179.8,3179.0,4.90088]
[1720924369228,1.08975629,3179.7,3179.0,4.90088]
[1720924369423,1.08975629,3179.6,3179.1,0.543932]
[1720924369647,1.08975629,3179.5,3179.2,2.3844]
[1720924369851,1.08975629,3179.4,3179.2,2.3844]
[1720924370171,0.32852489,3179.8,3179.2,2.3844]
[1720924370334,1.08973156,3179.7,3179.2,2.3844]
[1720924370650,1.08973156,3179.6,3179.3,0.2928332]
[1720924370870,0.32852489,3179.8,3179.3,0.2928332]
[1720924371171,0.32852489,3179.8,3179.4,2.3844]
[1720924371172,1.08962215,3179.7,3179.4,2.3844]
[1720924371335,0.32852489,3179.8,3179.4,2.3844]
[1720924371648,1.08962269,3179.7,3179.5,0.26772332]
[1720924371952,0.32852489,3179.8,3179.5,0.26772332]
[1720924372114,1.08965017,3179.7,3179.5,0.26772332]
[1720924372317,0.32852489,3179.8,3179.5,0.26772332]
[1720924372556,1.08965217,3179.7,3179.5,0.26772332]
[1720924372873,0.32852489,3179.8,3179.5,0.26772332]
[1720924373023,1.08965609,3179.7,3179.5,0.26772332]
[1720924373216,1.08965609,3179.6,3179.5,0.26772332]
[1720924375245,1.08965609,3179.6,3179.4,2.3844]
[1720924375554,0.32852489,3179.8,3179.1,0.543932]
[1720924375775,1.0896896,3179.7,3179.1,3.0]
[1720924376067,1.0896896,3179.7,3179.0,2.3844]
[1720924377947,1.0896896,3179.7,3179.0,6.75284]
[1720924378151,1.0896896,3179.7,3179.2,2.3844]
[1720924378351,1.0896896,3179.7,3179.3,0.490081]
[1720924378558,1.0896896,3179.7,3179.3,3.490081]
[1720924378933,1.08959131,3179.6,3179.3,3.490081]
[1720924379138,0.32852489,3179.8,3179.3,3.490081]
[1720924379343,1.08959111,3179.7,3179.3,3.490081]
[1720924379555,1.08959111,3179.6,3179.4,0.5874481]
[1720924379751,0.32852489,3179.8,3179.4,0.5874481]
[1720924379957,1.08958875,3179.7,3179.4,0.5874481]
[1720924380257,1.08958875,3179.6,3179.4,0.5874481]
[1720924380550,0.32852489,3179.8,3179.4,0.5874481]
[1720924380739,1.0895858,3179.7,3179.5,0.40775291]
[1720924381052,1.0895858,3179.6,3179.5,2.92386291]
[1720924381258,2.4539,3180.7,3179.6,2.3227]
[1720924381427,0.32938734,3180.4,3179.6,2.3227]
[1720924381622,1.08952233,3180.3,3179.6,2.3227]
[1720924381929,1.08952233,3180.2,3179.7,0.52465629]
[1720924382122,1.08952233,3180.1,3179.7,0.52465629]
[1720924382322,1.08952233,3180.0,3179.7,0.52465629]
[1720924382528,1.08952233,3179.9,3179.7,0.52465629]
[1720924382729,0.32938734,3180.4,3179.7,0.52465629]
[1720924382930,1.08949609,3180.3,3179.8,0.28473563]
[1720924383150,1.08949609,3180.2,3179.8,0.28473563]
[1720924383454,1.08949609,3180.1,3179.8,0.28473563]
[1720924383657,1.08949609,3180.0,3179.8,0.28473563]
[1720924383854,0.32938734,3180.4,3179.8,0.28473563]
[1720924384049,1.08949061,3180.3,3179.8,0.28473563]
[1720924384244,1.08949061,3180.2,3179.8,0.28473563]
[1720924384556,0.32938734,3180.4,3179.8,2.80059563]
[1720924384758,1.08949098,3180.3,3180.0,2.51567]
[1720924384959,1.08949098,3180.2,3180.0,2.51567]
[1720924385258,0.32938734,3180.4,3180.0,2.51567]
[1720924385463,1.08939673,3180.3,3180.0,2.51567]
[1720924385760,0.32938734,3180.4,3180.1,0.251567]
[1720924385968,1.08940107,3180.3,3180.1,0.251567]
[1720924386129,0.32938734,3180.4,3180.1,0.251567]
[1720924389432,1.08941353,3180.3,3179.8,0.28473563]
[1720924389624,0.32938734,3180.4,3179.7,3.0]
[1720924389828,1.08945197,3180.3,3179.7,3.0]
[1720924390058,1.08946776,3180.2,3179.8,2.51586]
[1720924390263,0.32938734,3180.4,3179.8,2.51586]
[1720924390755,0.32938734,3180.4,3180.1,2.51564]
[1720924390939,0.32938734,3180.4,3180.1,0.251564]
[1720924391727,1.08939607,3180.3,3179.8,5.51586]
[1720924391933,0.32938734,3180.4,3179.8,5.51586]
[1720924392250,0.32938734,3180.4,3179.8,3.0]
[1720924392251,1.08943717,3180.3,3179.8,3.0]
[1720924392451,0.32938734,3180.4,3179.7,3.0]
[1720924392648,1.08945088,3180.3,3179.8,2.51582]
[1720924392848,0.32938734,3180.4,3179.9,0.551582]
[1720924393078,1.08942785,3180.3,3179.9,0.551582]
[1720924393381,0.32938734,3180.4,3179.9,0.551582]
[1720924393545,1.08943186,3180.3,3179.9,0.551582]
[1720924393749,0.32938734,3180.4,3179.9,0.551582]
[1720924393989,1.08943543,3180.3,3180.0,0.3067402]
[1720924394155,0.32938734,3180.4,3180.0,0.3067402]
[1720924394361,1.08943368,3180.3,3179.9,0.551582]
[1720924394580,0.32938734,3180.4,3179.9,0.551582]
[1720924394882,1.08943741,3180.3,3179.7,3.0]
[1720924395081,0.32938734,3180.4,3179.6,5.3227]
[1720924395378,1.0894412,3180.3,3179.6,5.3227]
[1720924395595,0.32938734,3180.4,3179.6,5.3227]
[1720924395764,1.08943754,3180.3,3179.7,0.783879]
[1720924396082,0.32938734,3180.4,3179.7,3.783879]
[1720924396283,1.0894365,3180.3,3179.7,3.783879]
[1720924396482,0.32938734,3180.4,3179.7,3.783879]
[1720924396655,1.08943579,3180.3,3180.1,0.772]
[1720924396981,0.32938734,3180.4,3180.1,0.772]
[1720924397285,1.08943355,3180.3,3180.1,0.772]
[1720924397461,0.32938734,3180.4,3180.1,0.772]
[1720924397651,1.08943361,3180.3,3180.1,0.772]
[1720924397846,0.32938734,3180.4,3180.1,0.772]
[1720924398048,1.08943716,3180.2,3180.1,0.772]
[1720924398280,0.32938734,3180.4,3179.9,0.772]
[1720924398484,1.08946358,3180.3,3179.9,0.772]
[1720924398657,1.08946358,3180.2,3179.9,0.772]
[1720924398856,0.32938734,3180.4,3179.9,0.772]
[1720924399058,1.08947588,3180.3,3179.9,0.772]
[1720924399363,1.08947588,3180.3,3179.7,3.0]
[1720924399364,1.08947588,3180.2,3180.1,0.772]
[1720924401083,1.08946188,3180.2,3180.1,0.772]
[1720924401275,2.17892413,3180.2,3180.1,0.772]
[1720924402757,2.17892413,3180.2,3180.1,1.100777]
[1720924403778,1.08946225,3180.2,3180.1,1.100777]
[1720924404352,1.08940696,3180.2,3180.1,1.100777]
[1720924404553,0.32938734,3180.4,3180.2,2.51552]
[1720924404774,2.3222,3181.4,3180.3,0.772]
[1720924405091,0.3293993,3181.1,3180.9,0.772]
[1720924405386,1.08928182,3181.0,3180.9,0.772]
[1720924406664,1.08928182,3181.0,3180.6,4.80571]
[1720924406998,1.08928182,3180.9,3180.7,2.51515]
[1720924407173,1.08928182,3180.8,3180.7,2.51515]
[1720924407376,1.08928182,3180.8,3180.7,2.995715]
[1720924407893,1.08918066,3180.8,3180.7,2.995715]
[1720924408888,0.3293993,3181.1,3180.7,2.995715]
[1720924410099,2.3222,3181.7,3180.7,2.995715]
[1720924410307,0.32940968,3181.5,3180.7,2.995715]
[1720924410495,1.08915039,3181.0,3180.8,0.5286215]
[1720924413508,1.08915039,3181.0,3180.8,2.3806215]
[1720924413686,0.32940968,3181.5,3180.9,2.51501]
[1720924415292,0.32940968,3181.5,3180.8,2.3806215]
[1720924415603,0.32940968,3181.5,3180.9,0.53762965]
[1720924415806,0.32940968,3181.5,3180.9,3.53762965]
[1720924418910,1.08906092,3181.4,3180.9,3.53762965]
[1720924419207,1.08906092,3181.3,3180.9,3.53762965]
[1720924419400,1.08906092,3181.9,3180.9,3.53762965]
[1720924419599,1.08905904,3181.8,3181.0,5.64873811]
[1720924419910,1.08905904,3181.7,3181.0,5.64873811]
[1720924420113,1.08905904,3181.6,3181.1,0.91863678]
[1720924420431,1.08901657,3181.5,3181.2,2.51472]
[1720924420593,2.3222,3182.0,3181.2,2.51472]
[1720924420781,1.08899095,3181.9,3181.2,2.51472]
[1720924421116,1.08899095,3181.8,3181.2,2.51472]
[1720924421292,2.3222,3182.0,3181.3,0.34333568]
[1720924421293,1.08899095,3181.7,3181.3,0.34333568]
[1720924421493,1.08899095,3181.6,3181.3,0.34333568]
[1720924421693,1.08899095,3181.5,3181.3,0.34333568]
[1720924421889,2.3222,3182.0,3181.3,0.34333568]
[1720924422097,1.08898446,3181.9,3181.1,0.91863678]
[1720924422316,1.08898446,3181.8,3181.1,0.91863678]
[1720924422486,1.08898446,3181.9,3181.1,0.91863678]
[1720924423690,2.3222,3182.0,3181.1,0.91863678]
[1720924423691,1.08903249,3181.8,3181.1,0.91863678]
[1720924423914,1.08903249,3181.7,3181.1,0.91863678]
[1720924424095,2.3222,3182.0,3181.1,0.91863678]
[1720924424096,1.08903249,3181.6,3181.1,0.91863678]
[1720924424302,1.08903249,3181.5,3181.1,0.91863678]
[1720924424506,1.08904195,3181.4,3181.1,0.91863678]
[1720924424822,2.3222,3182.0,3181.1,0.91863678]
[1720924425029,1.08904557,3181.9,3181.1,0.91863678]
[1720924425321,1.08904557,3181.8,3181.1,0.91863678]
[1720924425521,1.08904557,3181.7,3181.1,0.91863678]
[1720924425727,1.08904557,3181.6,3181.1,0.91863678]
[1720924426028,1.08904557,3181.5,3181.1,0.91863678]
[1720924426236,1.08904557,3181.4,3181.1,0.91863678]
[1720924426396,2.3222,3182.0,3181.1,0.91863678]
[1720924426724,1.08903983,3181.9,3181.3,0.771]
[1720924426926,2.61889737,3182.0,3181.3,0.771]
[1720924427126,1.08904878,3181.9,3181.3,0.771]
[1720924427328,1.08904878,3181.8,3181.3,0.771]
[1720924427625,1.08904673,3181.7,3181.3,0.771]
[1720924427827,1.08904673,3181.6,3181.3,0.771]
[1720924428015,1.08904673,3181.9,3180.9,3.0]
[1720924428216,1.08904673,3181.8,3181.0,0.771]
[1720924428733,2.4127,3181.7,3180.8,3.0]
[1720924429031,1.08904673,3181.6,3181.0,0.771]
[1720924430123,1.08910493,3181.5,3181.0,0.771]
[1720924430323,1.08910493,3181.4,3181.0,0.771]
[1720924430506,1.08910493,3181.6,3181.0,0.771]
[1720924430713,1.08910493,3181.5,3181.0,0.771]
[1720924430896,1.08910493,3181.6,3181.0,0.771]
[1720924431101,1.08910493,3181.5,3181.0,0.771]
[1720924431296,1.08910493,3181.6,3181.0,0.771]
[1720924431600,1.43928542,3181.5,3181.0,0.771]
[1720924431801,1.08910493,3181.4,3181.0,0.771]
[1720924432313,1.08910493,3181.4,3180.5,3.0]
[1720924432505,1.08910493,3181.4,3180.8,0.771]
[1720924433722,1.08922896,3181.3,3180.8,0.771]
[1720924434032,1.08922896,3181.2,3180.8,0.771]
[1720924434243,1.08922896,3181.2,3180.1,2.38]
[1720924434244,3.58051487,3181.1,3180.1,2.38]
[1720924434430,3.58051487,3181.1,3179.9,0.771]
[1720924434431,2.29538045,3181.0,3179.9,0.771]
[1720924434610,3.50192896,3180.9,3179.9,0.771]
[1720924434805,1.08922896,3180.8,3179.9,0.771]
[1720924436960,2.4127,3180.9,3179.9,0.771]
[1720924437129,1.0894704,3180.8,3179.9,0.771]
[1720924437328,2.4127,3180.9,3179.9,0.771]
[1720924437530,1.40783977,3180.8,3179.9,0.771]
[1720924437862,1.08946977,3180.7,3179.9,0.771]
[1720924439139,1.08946977,3180.7,3180.2,0.771]
[1720924439653,1.08946977,3180.7,3180.4,0.771]
[1720924439945,1.08946977,3180.6,3180.4,0.771]
[1720924440154,2.4127,3180.9,3180.4,0.771]
[1720924440353,1.0894307,3180.5,3180.4,0.771]
[1720924442633,2.4127,3180.9,3180.4,0.771]
[1720924442840,1.08942582,3180.8,3180.4,0.771]
[1720924443550,1.08942582,3180.8,3180.2,0.771]
[1720924445626,1.08942582,3180.8,3180.2,1.0861]
[1720924445963,1.08942929,3180.7,3180.2,0.771]
[1720924446134,1.08942929,3180.6,3180.2,0.771]
[1720924446332,1.08942929,3180.5,3180.2,0.771]
[1720924446565,1.08942929,3180.8,3180.2,0.771]
[1720924446875,1.08942929,3180.7,3180.2,0.771]
[1720924447159,1.08942929,3180.8,3180.2,0.771]
[1720924447451,1.08942929,3180.7,3180.2,0.771]
[1720924447956,1.08942929,3180.6,3180.2,0.771]
[1720924448159,1.08942929,3180.8,3180.2,0.771]
[1720924449151,2.4127,3180.9,3180.2,0.771]
[1720924449350,1.0894502,3180.7,3180.2,0.771]
[1720924449561,1.08944943,3180.6,3180.2,0.771]
[1720924449867,1.08944741,3180.5,3180.1,0.771]
[1720924450047,1.08944741,3180.4,3180.1,0.771]
[1720924450244,2.4127,3180.9,3180.1,0.771]
[1720924450547,0.3154,3181.2,3179.9,2.51576]
[1720924450548,1.0894465,3180.8,3180.4,0.771]
[1720924450862,1.0894465,3180.7,3180.4,0.771]
[1720924451046,2.6448,3181.2,3180.4,1.08061]
[1720924451047,1.0894465,3180.6,3180.4,1.08061]
[1720924451231,1.0894465,3180.5,3180.4,1.08061]
[1720924452140,1.08939867,3180.5,3180.4,1.08061]
[1720924452664,1.08939926,3180.5,3180.4,1.08061]
[1720924454087,1.08939926,3180.5,3179.8,4.84096]
[1720924454236,1.08939926,3180.4,3180.1,0.771]
[1720924454438,1.08939926,3181.1,3180.1,0.771]
[1720924454638,1.08939926,3181.0,3180.1,0.771]
[1720924454872,1.08939926,3181.1,3180.1,0.771]
[1720924455167,1.08939926,3181.0,3179.8,2.3251]
[1720924455370,2.3294,3180.9,3180.2,0.771]
[1720924455672,1.08939926,3180.8,3180.2,0.771]
[1720924455868,1.0894476,3180.7,3180.2,0.771]
[1720924456064,1.0894476,3180.6,3180.2,0.771]
[1720924456362,1.0894476,3180.5,3180.2,0.771]
[1720924456566,1.0894476,3180.4,3180.2,0.771]
[1720924456757,1.0894476,3180.8,3180.2,0.771]
[1720924456957,1.0894476,3180.7,3180.2,0.771]
[1720924457168,1.0894476,3180.8,3180.2,0.771]
[1720924457375,1.0894476,3180.7,3180.2,0.771]
[1720924457584,1.0894476,3180.8,3180.2,0.771]
[1720924457744,1.0894476,3180.7,3180.2,0.771]
[1720924457945,1.0894476,3180.6,3180.2,0.771]
[1720924458144,1.0894476,3180.5,3180.2,0.771]
[1720924458378,1.0894476,3180.8,3180.2,0.771]
[1720924458663,1.0894476,3180.7,3180.2,0.771]
[1720924458873,1.0894476,3180.6,3180.2,0.771]
[1720924459078,1.0894476,3180.5,3180.2,0.771]
[1720924459292,2.3294,3180.9,3180.2,0.771]
[1720924459439,0.32945019,3180.5,3180.2,0.771]
[1720924459635,1.08944841,3180.4,3180.2,0.771]
[1720924459881,1.08944875,3180.3,3180.2,0.771]
[1720924461146,1.08944875,3180.3,3180.0,0.771]
[1720924461490,0.32945019,3180.5,3180.0,1.08061]
[1720924461491,1.08944875,3180.2,3180.0,1.08061]
[1720924461792,1.08944875,3180.1,3180.0,1.08061]
[1720924462593,1.08944609,3180.1,3180.0,1.08061]
[1720924462748,1.08944594,3180.1,3180.0,1.08061]
[1720924465888,1.08945826,3180.1,3180.0,1.08061]
[1720924469085,0.32945019,3180.5,3180.0,1.08061]
[1720924469381,1.08943471,3180.4,3180.0,1.08061]
[1720924469580,1.08943471,3180.3,3180.0,1.08061]
[1720924469783,1.08943471,3180.2,3180.0,1.08061]
[1720924470080,0.32945019,3180.5,3180.0,1.08061]
[1720924470081,1.08943471,3180.1,3180.0,1.08061]
[1720924470888,1.08943471,3180.1,3180.0,3.59633]
[1720924471090,1.08943471,3180.1,3180.0,1.08061]
[1720924472356,0.32945019,3180.5,3180.0,1.08061]
[1720924472555,1.08944081,3180.4,3180.1,0.359641]
[1720924472788,0.32945019,3180.5,3180.1,0.359641]
[1720924472789,1.08944081,3180.3,3180.1,0.359641]
[1720924472987,1.08944075,3180.2,3180.1,0.359641]
[1720924474590,1.08944075,3180.2,3180.0,1.08061]
[1720924474791,0.32945019,3180.5,3180.0,1.08061]
[1720924475095,1.08943058,3180.4,3180.0,1.08061]
[1720924475394,1.08943058,3180.3,3180.0,1.08061]
[1720924475590,1.08943058,3180.2,3179.7,3.0]
[1720924475790,0.32945019,3180.5,3180.1,0.771]
[1720924475996,1.08945878,3180.4,3180.1,0.771]
[1720924476197,1.08945878,3180.3,3180.1,0.771]
[1720924476367,1.08945878,3180.2,3180.1,0.771]
[1720924477097,1.08945878,3180.2,3179.2,2.2946]
[1720924477296,3.59106254,3180.4,3179.4,0.771]
[1720924477297,1.08945878,3180.1,3179.4,0.771]
[1720924477592,1.08945878,3180.0,3179.6,0.771]
[1720924477780,1.08945878,3180.3,3179.6,0.771]
[1720924477982,2.82006254,3180.4,3179.6,0.771]
[1720924477983,1.08945878,3180.2,3179.6,0.771]
[1720924478171,1.08945878,3180.3,3179.6,0.771]
[1720924478366,1.08945878,3180.2,3179.6,0.771]
[1720924478604,1.08945878,3180.3,3179.6,0.771]
[1720924478897,1.08945878,3180.2,3179.6,0.771]
[1720924479098,2.82006254,3180.4,3179.6,0.771]
[1720924479400,1.08965802,3180.1,3179.6,0.771]
[1720924479574,1.08965786,3180.0,3179.6,0.771]
[1720924482473,1.08966171,3179.9,3179.6,0.771]
[1720924482672,1.08966171,3179.8,3179.6,0.771]
[1720924482876,1.08966171,3179.7,3179.6,0.771]
[1720924484072,1.08964955,3179.7,3179.6,0.771]
[1720924484905,1.08964955,3179.7,3179.4,0.771]
[1720924485105,1.08964955,3179.6,3179.4,0.771]
[1720924485316,1.08964955,3179.8,3179.4,0.771]
[1720924485480,1.08964955,3179.8,3178.8,4.91435]
[1720924485681,2.3117,3179.9,3179.1,0.771]
[1720924485909,1.08977646,3179.8,3179.3,0.771]
[1720924486092,1.08977646,3179.7,3179.3,0.771]
[1720924486405,1.08977954,3179.6,3179.3,0.771]
[1720924486579,1.08977954,3179.5,3179.3,0.771]
[1720924486779,1.08977954,3179.4,3179.3,0.771]
[1720924487000,1.08977954,3179.8,3179.3,0.771]
[1720924487311,1.08977954,3179.7,3179.3,0.771]
[1720924487501,1.08977954,3179.8,3179.3,0.771]
[1720924487703,1.08977954,3179.7,3179.3,0.771]
[1720924487901,1.08977954,3179.8,3179.3,0.771]
[1720924488225,1.08977954,3179.7,3179.3,0.771]
[1720924488406,2.3117,3179.9,3179.3,0.771]
[1720924488407,1.08977954,3179.8,3179.3,0.771]
[1720924488611,1.08977954,3179.7,3179.3,0.771]
[1720924488821,1.08977954,3179.8,3179.3,0.771]
[1720924488987,2.3117,3179.9,3179.3,0.771]
[1720924488988,1.08977919,3179.7,3179.3,0.771]
[1720924489311,1.08977919,3179.6,3179.3,0.771]
[1720924489612,2.3117,3179.9,3179.3,0.771]
[1720924489613,1.08977919,3179.5,3179.3,0.771]
[1720924489814,1.08977919,3179.8,3179.3,0.771]
[1720924490009,1.08977919,3179.7,3179.3,0.771]
[1720924490180,1.08977919,3179.8,3179.3,0.771]
[1720924491512,0.32946919,3179.7,3179.3,0.771]
[1720924491713,1.08977919,3179.6,3179.3,0.771]
[1720924492311,1.0897834,3179.5,3179.3,0.771]